[Event "*** Titled Tuesday Blitz"]
[Site "Chess.com"]
[Date "2020.04.14"]
[Round "3"]
[White "rpragchess"]
[Black "kingofthenil"]
[Result "0-1"]
[WhiteElo "2762"]
[BlackElo "2549"]
[TimeControl "180+1"]
[EndTime "10:25:05 PDT"]
[Termination "kingofthenil won by resignation"]

1. e4 {[%clk 0:03:00.9]} 1... e6 {[%clk 0:02:58.7]} 2. d3 {[%clk 0:02:58.4]}
2... d5 {[%clk 0:02:59.6]} 3. Qe2 {[%clk 0:02:58.3]} 3... Nf6 {[%clk 0:02:58.1]}
4. Nf3 {[%clk 0:02:57.4]} 4... Be7 {[%clk 0:02:57.1]} 5. g3 {[%clk 0:02:56]}
5... O-O {[%clk 0:02:57.1]} 6. Bg2 {[%clk 0:02:56.2]} 6... c5 {[%clk 0:02:57.3]}
7. O-O {[%clk 0:02:55.8]} 7... Nc6 {[%clk 0:02:57.3]} 8. e5 {[%clk 0:02:56.4]}
8... Nd7 {[%clk 0:02:54.6]} 9. c4 {[%clk 0:02:56.4]} 9... b5 {[%clk 0:02:53.5]}
10. cxb5 {[%clk 0:02:50.6]} 10... Nd4 {[%clk 0:02:53.4]} 11. Nxd4 {[%clk
0:02:45.7]} 11... cxd4 {[%clk 0:02:54.3]} 12. Nd2 {[%clk 0:02:42.9]} 12... Qc7
{[%clk 0:02:25.4]} 13. Nf3 {[%clk 0:02:39.8]} 13... Qb6 {[%clk 0:02:25.8]} 14.
a4 {[%clk 0:02:27.8]} 14... a6 {[%clk 0:02:12]} 15. Bd2 {[%clk 0:02:26]} 15...
axb5 {[%clk 0:01:51.7]} 16. a5 {[%clk 0:02:25.6]} 16... Qa7 {[%clk 0:01:49.2]}
17. b4 {[%clk 0:02:24.3]} 17... Ba6 {[%clk 0:01:46.3]} 18. Rfc1 {[%clk
0:02:06.9]} 18... Rfc8 {[%clk 0:01:38.2]} 19. h4 {[%clk 0:01:48.9]} 19... Rxc1+
{[%clk 0:01:25.7]} 0-1

[Event "*** Titled Tuesday Blitz"]
[Site "Chess.com"]
[Date "2020.04.14"]
[Round "3"]
[White "SanchezKelvin"]
[Black "KazakhFighter04"]
[Result "0-1"]
[WhiteElo "2428"]
[BlackElo "2727"]
[TimeControl "180+1"]
[EndTime "10:25:09 PDT"]
[Termination "KazakhFighter04 won by resignation"]

1. d4 {[%clk 0:03:00.9]} 1... Nf6 {[%clk 0:02:58.3]} 2. c4 {[%clk 0:03:00.1]}
2... e6 {[%clk 0:02:57.3]} 3. Nf3 {[%clk 0:02:59.9]} 3... d5 {[%clk 0:02:57]} 4.
Nc3 {[%clk 0:02:59.5]} 4... Be7 {[%clk 0:02:57.6]} 5. Bg5 {[%clk 0:02:59.1]}
5... O-O {[%clk 0:02:55.6]} 6. e3 {[%clk 0:02:59.2]} 6... h6 {[%clk 0:02:55.9]}
7. Bxf6 {[%clk 0:02:58.9]} 7... Bxf6 {[%clk 0:02:55.6]} 8. Qc2 {[%clk
0:02:59.8]} 8... c6 {[%clk 0:02:50.6]} 9. h4 {[%clk 0:02:59.1]} 9... g6 {[%clk
0:02:50.4]} 10. g4 {[%clk 0:02:58.7]} 10... Bg7 {[%clk 0:02:50.3]} 11. h5 {[%clk
0:02:51.3]} 11... g5 {[%clk 0:02:47.8]} 12. Ne5 {[%clk 0:02:50.9]} 12... Nd7
{[%clk 0:02:44.8]} 13. f4 {[%clk 0:02:49]} 13... Nxe5 {[%clk 0:02:45.1]} 14.
dxe5 {[%clk 0:02:48.3]} 14... d4 {[%clk 0:02:43.1]} 15. O-O-O {[%clk 0:02:47.6]}
15... c5 {[%clk 0:02:35.2]} 16. Ne4 {[%clk 0:02:36.2]} 16... f6 {[%clk
0:02:24.9]} 17. exf6 {[%clk 0:02:26.9]} 17... Bxf6 {[%clk 0:02:25.8]} 18. Nxc5
{[%clk 0:02:25.3]} 18... Qe7 {[%clk 0:02:19.7]} 19. Qg6+ {[%clk 0:02:16.2]}
19... Qg7 {[%clk 0:02:13]} 20. Qxg7+ {[%clk 0:02:00.4]} 20... Bxg7 {[%clk
0:02:13.9]} 21. fxg5 {[%clk 0:01:58.5]} 21... dxe3 {[%clk 0:02:09.5]} 22. gxh6
{[%clk 0:01:52.5]} 22... Bxh6 {[%clk 0:02:10.4]} 23. Be2 {[%clk 0:01:52.3]}
23... Rf2 {[%clk 0:02:08.7]} 24. Rde1 {[%clk 0:01:51.6]} 24... b6 {[%clk
0:02:01.9]} 25. Nd3 {[%clk 0:01:46.1]} 25... Bg5 {[%clk 0:01:58.8]} 26. Kb1
{[%clk 0:01:33.4]} 26... Bb7 {[%clk 0:01:54]} 27. Rhg1 {[%clk 0:01:32]} 27...
Be4 {[%clk 0:01:46.8]} 28. Ka1 {[%clk 0:01:31.6]} 28... Rxe2 {[%clk 0:01:46]}
29. Rxe2 {[%clk 0:01:31.5]} 29... Bxd3 {[%clk 0:01:45.9]} 0-1

[Event "*** Titled Tuesday Blitz"]
[Site "Chess.com"]
[Date "2020.04.14"]
[Round "3"]
[White "DrBergerBerger"]
[Black "chenxiaoyuer"]
[Result "1-0"]
[WhiteElo "2507"]
[BlackElo "2064"]
[TimeControl "180+1"]
[EndTime "10:25:21 PDT"]
[Termination "DrBergerBerger won by checkmate"]

1. e4 {[%clk 0:03:00.9]} 1... c5 {[%clk 0:02:59.2]} 2. Nc3 {[%clk 0:03:00.5]}
2... d6 {[%clk 0:02:58.1]} 3. d4 {[%clk 0:02:59.7]} 3... cxd4 {[%clk 0:02:57.8]}
4. Qxd4 {[%clk 0:03:00]} 4... a6 {[%clk 0:02:57.8]} 5. b3 {[%clk 0:02:56.8]}
5... Nc6 {[%clk 0:02:57.3]} 6. Qd2 {[%clk 0:02:55.8]} 6... Nf6 {[%clk
0:02:56.7]} 7. Bb2 {[%clk 0:02:53.4]} 7... e6 {[%clk 0:02:55.8]} 8. O-O-O {[%clk
0:02:53.4]} 8... Be7 {[%clk 0:02:55.8]} 9. f4 {[%clk 0:02:52.4]} 9... O-O {[%clk
0:02:55.3]} 10. g4 {[%clk 0:02:50]} 10... Nxg4 {[%clk 0:02:47.2]} 11. Nf3 {[%clk
0:02:48.8]} 11... b5 {[%clk 0:02:43.3]} 12. Rg1 {[%clk 0:02:45.7]} 12... e5
{[%clk 0:02:39.6]} 13. h3 {[%clk 0:02:29.3]} 13... Nf6 {[%clk 0:02:32.9]} 14.
fxe5 {[%clk 0:02:28.2]} 14... Nxe5 {[%clk 0:01:38.1]} 15. Nxe5 {[%clk
0:02:27.2]} 15... dxe5 {[%clk 0:01:38]} 16. Qg2 {[%clk 0:02:24.6]} 16... Ng4
{[%clk 0:01:11.9]} 17. Rxd8 {[%clk 0:02:18.5]} 17... Rxd8 {[%clk 0:01:11.8]} 18.
hxg4 {[%clk 0:02:10.9]} 18... Rd1+ {[%clk 0:01:11.9]} 19. Nxd1 {[%clk
0:02:05.8]} 19... Bg5+ {[%clk 0:01:06.7]} 20. Kb1 {[%clk 0:02:01.4]} 20... f6
{[%clk 0:01:07.6]} 21. Bc1 {[%clk 0:01:56.2]} 21... Be6 {[%clk 0:01:08.5]} 22.
Bxg5 {[%clk 0:01:55.2]} 22... Rd8 {[%clk 0:01:09.4]} 23. Bd3 {[%clk 0:01:52]}
23... fxg5 {[%clk 0:01:08.6]} 24. Ne3 {[%clk 0:01:51.7]} 24... g6 {[%clk
0:01:08.2]} 25. Rf1 {[%clk 0:01:45.1]} 25... Rxd3 {[%clk 0:01:08.2]} 26. cxd3
{[%clk 0:01:44.5]} 26... Bxb3 {[%clk 0:01:08.9]} 27. axb3 {[%clk 0:01:43.7]}
27... a5 {[%clk 0:01:09.8]} 28. Qf2 {[%clk 0:01:43.5]} 28... a4 {[%clk
0:01:08.8]} 29. Qf8# {[%clk 0:01:44.1]} 1-0

[Event "*** Titled Tuesday Blitz"]
[Site "Chess.com"]
[Date "2020.04.14"]
[Round "3"]
[White "Reality-Stone"]
[Black "Zurability"]
[Result "0-1"]
[WhiteElo "2403"]
[BlackElo "2698"]
[TimeControl "180+1"]
[EndTime "10:25:27 PDT"]
[Termination "Zurability won by resignation"]

1. d4 {[%clk 0:03:00.9]} 1... Nf6 {[%clk 0:03:00.1]} 2. c4 {[%clk 0:03:00.7]}
2... e6 {[%clk 0:03:00.6]} 3. g3 {[%clk 0:03:01]} 3... b6 {[%clk 0:03:01.1]} 4.
Bg2 {[%clk 0:03:00.3]} 4... c6 {[%clk 0:03:01.7]} 5. Nc3 {[%clk 0:02:59.4]} 5...
d5 {[%clk 0:03:02.2]} 6. Nf3 {[%clk 0:02:53.7]} 6... Ba6 {[%clk 0:03:01.7]} 7.
Ne5 {[%clk 0:02:45.3]} 7... Nfd7 {[%clk 0:02:58]} 8. cxd5 {[%clk 0:02:43.2]}
8... cxd5 {[%clk 0:02:57.5]} 9. O-O {[%clk 0:02:40.9]} 9... Be7 {[%clk
0:02:50.2]} 10. Bf4 {[%clk 0:02:27.6]} 10... Bb7 {[%clk 0:02:42]} 11. Rc1 {[%clk
0:02:27.1]} 11... Nxe5 {[%clk 0:02:33.5]} 12. Bxe5 {[%clk 0:02:10.9]} 12... O-O
{[%clk 0:02:32.9]} 13. a3 {[%clk 0:01:37.6]} 13... Nc6 {[%clk 0:02:32.7]} 14.
Bf4 {[%clk 0:01:31.2]} 14... Rc8 {[%clk 0:02:33.1]} 15. Qd3 {[%clk 0:01:30]}
15... Na5 {[%clk 0:02:30.7]} 16. Nb5 {[%clk 0:01:22.2]} 16... a6 {[%clk
0:02:19.7]} 17. Rxc8 {[%clk 0:01:13]} 17... Bxc8 {[%clk 0:02:12.8]} 0-1

[Event "*** Titled Tuesday Blitz"]
[Site "Chess.com"]
[Date "2020.04.14"]
[Round "3"]
[White "PeterPantz"]
[Black "Spalir"]
[Result "1/2-1/2"]
[WhiteElo "2248"]
[BlackElo "2600"]
[TimeControl "180+1"]
[EndTime "10:25:27 PDT"]
[Termination "Game drawn by repetition"]

1. d4 {[%clk 0:03:00.9]} 1... d5 {[%clk 0:02:35.9]} 2. c4 {[%clk 0:02:59.3]}
2... e6 {[%clk 0:02:35.7]} 3. Nc3 {[%clk 0:02:58.9]} 3... Nf6 {[%clk 0:02:35.4]}
4. cxd5 {[%clk 0:02:59.1]} 4... exd5 {[%clk 0:02:35.4]} 5. Bg5 {[%clk
0:02:59.6]} 5... Be7 {[%clk 0:02:35.9]} 6. e3 {[%clk 0:02:59.7]} 6... c6 {[%clk
0:02:36.2]} 7. Bd3 {[%clk 0:02:59.8]} 7... h6 {[%clk 0:02:36.5]} 8. Bh4 {[%clk
0:02:59.2]} 8... Nbd7 {[%clk 0:02:37.1]} 9. f3 {[%clk 0:02:59.4]} 9... O-O
{[%clk 0:02:37.6]} 10. Nge2 {[%clk 0:02:58.2]} 10... Re8 {[%clk 0:02:37.8]} 11.
Qc2 {[%clk 0:02:57.7]} 11... Nb6 {[%clk 0:02:37.9]} 12. h3 {[%clk 0:02:54.2]}
12... Nh5 {[%clk 0:02:23.6]} 13. Bf2 {[%clk 0:02:53.6]} 13... Nf6 {[%clk
0:01:59.9]} 14. e4 {[%clk 0:02:51.7]} 14... dxe4 {[%clk 0:01:58.8]} 15. fxe4
{[%clk 0:02:52.6]} 15... Bb4 {[%clk 0:01:55.8]} 16. a3 {[%clk 0:02:47.8]} 16...
Bxc3+ {[%clk 0:01:55.8]} 17. bxc3 {[%clk 0:02:48.3]} 17... Be6 {[%clk
0:01:52.4]} 18. e5 {[%clk 0:02:37.4]} 18... Nfd7 {[%clk 0:01:43.4]} 19. O-O
{[%clk 0:02:33.9]} 19... Nc4 {[%clk 0:01:38.5]} 20. Nf4 {[%clk 0:02:29.6]} 20...
Ndb6 {[%clk 0:01:37.7]} 21. a4 {[%clk 0:02:24.6]} 21... a5 {[%clk 0:01:36.3]}
22. Rab1 {[%clk 0:02:19.2]} 22... Qd7 {[%clk 0:01:33.9]} 23. Nxe6 {[%clk
0:02:15.9]} 23... fxe6 {[%clk 0:01:33.1]} 24. Qe2 {[%clk 0:01:57.6]} 24... Qd5
{[%clk 0:01:30.5]} 25. Be4 {[%clk 0:01:42.2]} 25... Qd7 {[%clk 0:01:30.4]} 26.
Bd3 {[%clk 0:01:41.6]} 26... Qd5 {[%clk 0:01:31]} 27. Be4 {[%clk 0:01:38.8]}
27... Qd8 {[%clk 0:01:28.9]} 28. Bd3 {[%clk 0:01:36]} 28... Qd5 {[%clk
0:01:15.3]} 1/2-1/2

[Event "*** Titled Tuesday Blitz"]
[Site "Chess.com"]
[Date "2020.04.14"]
[Round "3"]
[White "ZiggyStardust64"]
[Black "Guenplen"]
[Result "0-1"]
[WhiteElo "2609"]
[BlackElo "2942"]
[TimeControl "180+1"]
[EndTime "10:25:30 PDT"]
[Termination "Guenplen won by checkmate"]

1. d4 {[%clk 0:03:00.9]} 1... d5 {[%clk 0:02:58.5]} 2. c4 {[%clk 0:03:01.1]}
2... e6 {[%clk 0:02:58.8]} 3. Nf3 {[%clk 0:03:00.5]} 3... Nf6 {[%clk 0:02:58.5]}
4. e3 {[%clk 0:03:00.7]} 4... Nbd7 {[%clk 0:02:50.2]} 5. b3 {[%clk 0:02:59.5]}
5... Bd6 {[%clk 0:02:48]} 6. Bb2 {[%clk 0:02:59.3]} 6... O-O {[%clk 0:02:47.2]}
7. Bd3 {[%clk 0:02:59.5]} 7... b6 {[%clk 0:02:47.4]} 8. O-O {[%clk 0:02:59.6]}
8... Bb7 {[%clk 0:02:47.7]} 9. Nc3 {[%clk 0:03:00.3]} 9... dxc4 {[%clk
0:02:44.7]} 10. bxc4 {[%clk 0:02:59.7]} 10... c5 {[%clk 0:02:42]} 11. d5 {[%clk
0:02:57.6]} 11... exd5 {[%clk 0:02:41.7]} 12. cxd5 {[%clk 0:02:58.5]} 12... a6
{[%clk 0:02:41.9]} 13. a4 {[%clk 0:02:57.9]} 13... Ne5 {[%clk 0:02:28.6]} 14.
Nxe5 {[%clk 0:02:57.4]} 14... Bxe5 {[%clk 0:02:29.5]} 15. e4 {[%clk 0:02:56.8]}
15... Qc7 {[%clk 0:02:22.7]} 16. g3 {[%clk 0:02:48.1]} 16... Rfe8 {[%clk
0:02:19.2]} 17. Rc1 {[%clk 0:02:41.6]} 17... Bc8 {[%clk 0:02:16.9]} 18. Qc2
{[%clk 0:02:10.9]} 18... Bh3 {[%clk 0:02:13.6]} 19. Rfe1 {[%clk 0:02:10.8]}
19... c4 {[%clk 0:02:07.2]} 20. Be2 {[%clk 0:02:07.6]} 20... Rab8 {[%clk
0:02:03.2]} 21. Rcd1 {[%clk 0:01:39.1]} 21... b5 {[%clk 0:02:00]} 22. axb5
{[%clk 0:01:38.7]} 22... axb5 {[%clk 0:02:00.9]} 23. f4 {[%clk 0:01:35.4]} 23...
Qc5+ {[%clk 0:01:53.7]} 24. Kh1 {[%clk 0:01:33.6]} 24... Qf2 {[%clk 0:01:54.6]}
25. Bd3 {[%clk 0:00:48.3]} 25... Bg2# {[%clk 0:01:52.7]} 0-1

[Event "*** Titled Tuesday Blitz"]
[Site "Chess.com"]
[Date "2020.04.14"]
[Round "3"]
[White "MiroVlasenko"]
[Black "BilodeauA"]
[Result "0-1"]
[WhiteElo "2662"]
[BlackElo "2908"]
[TimeControl "180+1"]
[EndTime "10:25:34 PDT"]
[Termination "BilodeauA won by resignation"]

1. e4 {[%clk 0:03:00.9]} 1... e5 {[%clk 0:02:56.6]} 2. Nc3 {[%clk 0:03:00.5]}
2... Nf6 {[%clk 0:02:55.6]} 3. Bc4 {[%clk 0:03:00.3]} 3... Bc5 {[%clk
0:02:49.5]} 4. d3 {[%clk 0:02:59.9]} 4... d6 {[%clk 0:02:49]} 5. f4 {[%clk
0:03:00.2]} 5... Ng4 {[%clk 0:02:37.3]} 6. Qf3 {[%clk 0:02:59]} 6... Nc6 {[%clk
0:02:30.5]} 7. f5 {[%clk 0:02:39.9]} 7... h5 {[%clk 0:02:23.7]} 8. Nh3 {[%clk
0:02:31.8]} 8... Nd4 {[%clk 0:02:19.3]} 9. Qd1 {[%clk 0:02:30.5]} 9... Qh4+
{[%clk 0:02:17.7]} 10. Kd2 {[%clk 0:02:30.7]} 10... c6 {[%clk 0:01:38.9]} 11.
Ne2 {[%clk 0:02:22.2]} 11... b5 {[%clk 0:01:33.3]} 12. Bb3 {[%clk 0:02:14]}
12... Qxh3 {[%clk 0:01:08.1]} 13. Qg1 {[%clk 0:01:56.4]} 13... Qh4 {[%clk
0:00:59.3]} 14. Qf1 {[%clk 0:01:49.9]} 14... Ne3 {[%clk 0:00:55.7]} 15. Kxe3
{[%clk 0:01:41.1]} 15... Nxb3+ {[%clk 0:00:53]} 16. d4 {[%clk 0:01:38.9]} 16...
Nxd4 {[%clk 0:00:49.5]} 17. Kd3 {[%clk 0:01:36.9]} 17... b4 {[%clk 0:00:46.1]}
0-1

[Event "*** Titled Tuesday Blitz"]
[Site "Chess.com"]
[Date "2020.04.14"]
[Round "3"]
[White "Jadro9"]
[Black "WinningButNotReally"]
[Result "1-0"]
[WhiteElo "2691"]
[BlackElo "2421"]
[TimeControl "180+1"]
[EndTime "10:25:44 PDT"]
[Termination "Jadro9 won by resignation"]

1. e4 {[%clk 0:03:00.9]} 1... e5 {[%clk 0:02:52.3]} 2. Nf3 {[%clk 0:03:00.5]}
2... Nc6 {[%clk 0:02:52.1]} 3. Bb5 {[%clk 0:02:57.7]} 3... a6 {[%clk 0:02:50.8]}
4. Ba4 {[%clk 0:02:57.6]} 4... Nf6 {[%clk 0:02:50.7]} 5. d3 {[%clk 0:02:58.2]}
5... b5 {[%clk 0:02:46.3]} 6. Bb3 {[%clk 0:02:58]} 6... Be7 {[%clk 0:02:43.9]}
7. a4 {[%clk 0:02:56.9]} 7... Bb7 {[%clk 0:02:43.9]} 8. Nc3 {[%clk 0:02:55.7]}
8... b4 {[%clk 0:02:37]} 9. Nd5 {[%clk 0:02:55.9]} 9... O-O {[%clk 0:02:23.8]}
10. a5 {[%clk 0:02:51.1]} 10... Nd4 {[%clk 0:02:02]} 11. Nxe7+ {[%clk
0:02:48.2]} 11... Qxe7 {[%clk 0:02:01.9]} 12. Nxd4 {[%clk 0:02:48.9]} 12... exd4
{[%clk 0:02:02.3]} 13. O-O {[%clk 0:02:49.6]} 13... d5 {[%clk 0:01:58.9]} 14.
Re1 {[%clk 0:02:42.6]} 14... dxe4 {[%clk 0:01:55.5]} 15. dxe4 {[%clk 0:02:42.8]}
15... Rad8 {[%clk 0:01:38.1]} 16. e5 {[%clk 0:02:42.5]} 16... Ne4 {[%clk
0:01:37.9]} 17. Qg4 {[%clk 0:02:41.3]} 17... Nf6 {[%clk 0:00:52.2]} 18. Qh4
{[%clk 0:02:37.1]} 18... Bd5 {[%clk 0:00:20.7]} 19. Bg5 {[%clk 0:02:35.7]} 19...
Rfe8 {[%clk 0:00:21]} 20. Ba4 {[%clk 0:02:25.8]} 20... c6 {[%clk 0:00:17.3]} 21.
f3 {[%clk 0:02:26.2]} 21... Qc5 {[%clk 0:00:14.3]} 22. exf6 {[%clk 0:02:24.9]}
22... d3+ {[%clk 0:00:14.6]} 23. Qf2 {[%clk 0:02:25.5]} 23... Qxf2+ {[%clk
0:00:14.2]} 24. Kxf2 {[%clk 0:02:26.1]} 24... dxc2 {[%clk 0:00:13.5]} 25. Bxc2
{[%clk 0:02:25.4]} 25... b3 {[%clk 0:00:13.3]} 26. Bf5 {[%clk 0:02:23]} 26...
Be6 {[%clk 0:00:12.3]} 27. Bxe6 {[%clk 0:02:22.2]} 27... fxe6 {[%clk 0:00:09.4]}
28. f7+ {[%clk 0:02:22.4]} 28... Kxf7 {[%clk 0:00:10.3]} 29. Bxd8 {[%clk
0:02:22.7]} 29... Rxd8 {[%clk 0:00:11.2]} 30. Rad1 {[%clk 0:02:23]} 1-0

[Event "*** Titled Tuesday Blitz"]
[Site "Chess.com"]
[Date "2020.04.14"]
[Round "3"]
[White "Gahan-MG"]
[Black "picturesquecheck"]
[Result "1-0"]
[WhiteElo "2520"]
[BlackElo "2212"]
[TimeControl "180+1"]
[EndTime "10:25:47 PDT"]
[Termination "Gahan-MG won by resignation"]

1. e4 {[%clk 0:03:00.9]} 1... c5 {[%clk 0:02:59.2]} 2. c3 {[%clk 0:03:00.4]}
2... d5 {[%clk 0:02:56.4]} 3. exd5 {[%clk 0:03:00.6]} 3... Qxd5 {[%clk
0:02:57.3]} 4. d4 {[%clk 0:03:01.2]} 4... Nc6 {[%clk 0:02:57.5]} 5. Nf3 {[%clk
0:03:00.6]} 5... Bf5 {[%clk 0:02:58]} 6. dxc5 {[%clk 0:02:59.9]} 6... Qxd1+
{[%clk 0:02:57.1]} 7. Kxd1 {[%clk 0:02:59.4]} 7... e5 {[%clk 0:02:57.7]} 8. Be3
{[%clk 0:02:57.8]} 8... Nf6 {[%clk 0:02:57.7]} 9. b4 {[%clk 0:02:56.5]} 9... Nd5
{[%clk 0:02:55.3]} 10. Bb5 {[%clk 0:02:53.2]} 10... O-O-O {[%clk 0:02:46]} 11.
Kc1 {[%clk 0:02:49.7]} 11... Nxe3 {[%clk 0:02:44.9]} 12. fxe3 {[%clk 0:02:48.9]}
12... f6 {[%clk 0:02:44.9]} 13. Bxc6 {[%clk 0:02:46.8]} 13... bxc6 {[%clk
0:02:44.5]} 14. Re1 {[%clk 0:02:46.4]} 14... Be4 {[%clk 0:02:38.6]} 15. Nbd2
{[%clk 0:02:45.1]} 15... Bd5 {[%clk 0:02:38.5]} 16. e4 {[%clk 0:02:42.9]} 16...
Bf7 {[%clk 0:02:38.3]} 17. Kc2 {[%clk 0:02:43.2]} 17... a5 {[%clk 0:02:38.2]}
18. Nb3 {[%clk 0:02:39.2]} 18... a4 {[%clk 0:02:22.5]} 19. Na5 {[%clk
0:02:39.1]} 19... Kc7 {[%clk 0:02:20.1]} 20. Nd2 {[%clk 0:02:34.2]} 20... g6
{[%clk 0:02:03.6]} 21. Ndc4 {[%clk 0:02:33.2]} 21... Bh6 {[%clk 0:02:02.9]} 22.
Rad1 {[%clk 0:02:28]} 22... Rxd1 {[%clk 0:01:46]} 23. Rxd1 {[%clk 0:02:27.7]}
23... Bxc4 {[%clk 0:01:02.2]} 24. Nxc4 {[%clk 0:02:27]} 24... Rd8 {[%clk
0:01:02.8]} 25. Rxd8 {[%clk 0:02:24.2]} 25... Kxd8 {[%clk 0:01:02.1]} 26. Nb6
{[%clk 0:02:23.4]} 26... a3 {[%clk 0:00:57.8]} 27. Nc4 {[%clk 0:02:22.5]} 27...
Kc7 {[%clk 0:00:54.9]} 28. Nxa3 {[%clk 0:02:22.5]} 28... f5 {[%clk 0:00:55.4]}
29. Kd3 {[%clk 0:02:21.8]} 29... Bf4 {[%clk 0:00:47.4]} 30. g3 {[%clk
0:02:21.4]} 30... Bc1 {[%clk 0:00:47.4]} 31. Nc4 {[%clk 0:02:21.7]} 31... f4
{[%clk 0:00:47.2]} 32. Nxe5 {[%clk 0:02:19.7]} 32... fxg3 {[%clk 0:00:46.6]} 33.
hxg3 {[%clk 0:02:20.6]} 33... g5 {[%clk 0:00:44.2]} 34. g4 {[%clk 0:02:19.8]}
34... Bf4 {[%clk 0:00:43.2]} 35. Nc4 {[%clk 0:02:15.1]} 35... h6 {[%clk
0:00:41]} 36. a4 {[%clk 0:02:14.8]} 1-0

[Event "*** Titled Tuesday Blitz"]
[Site "Chess.com"]
[Date "2020.04.14"]
[Round "3"]
[White "Suleyman_Chess06"]
[Black "Fh2411"]
[Result "1-0"]
[WhiteElo "2218"]
[BlackElo "2451"]
[TimeControl "180+1"]
[EndTime "10:25:48 PDT"]
[Termination "Suleyman_Chess06 won by resignation"]

1. Nf3 {[%clk 0:03:00.9]} 1... d5 {[%clk 0:02:56.2]} 2. d4 {[%clk 0:03:01.1]}
2... c6 {[%clk 0:02:55.5]} 3. Bf4 {[%clk 0:03:01.5]} 3... Nf6 {[%clk 0:02:56.4]}
4. e3 {[%clk 0:03:01.7]} 4... Bg4 {[%clk 0:02:56]} 5. h3 {[%clk 0:03:01.6]} 5...
Nbd7 {[%clk 0:02:56.6]} 6. hxg4 {[%clk 0:03:00.8]} 6... Nxg4 {[%clk 0:02:57.5]}
7. Bd3 {[%clk 0:02:59]} 7... h5 {[%clk 0:02:55]} 8. Bf5 {[%clk 0:02:53.8]} 8...
Ngf6 {[%clk 0:02:49.9]} 9. c3 {[%clk 0:02:51.5]} 9... g6 {[%clk 0:02:49.5]} 10.
Bd3 {[%clk 0:02:51.3]} 10... Bg7 {[%clk 0:02:48.2]} 11. Nbd2 {[%clk 0:02:50.6]}
11... Ng4 {[%clk 0:02:43.1]} 12. Qc2 {[%clk 0:02:41.3]} 12... f5 {[%clk
0:02:23.2]} 13. Bxf5 {[%clk 0:02:22]} 13... gxf5 {[%clk 0:02:24.1]} 14. Qxf5
{[%clk 0:02:22.2]} 14... Nf8 {[%clk 0:01:55.1]} 15. Rxh5 {[%clk 0:02:14.3]}
15... Nf6 {[%clk 0:01:54.4]} 16. Rxh8 {[%clk 0:02:12.1]} 16... Bxh8 {[%clk
0:01:55.3]} 17. Ne5 {[%clk 0:02:11.1]} 17... Qc8 {[%clk 0:01:53]} 18. Qxc8+
{[%clk 0:02:05.9]} 18... Rxc8 {[%clk 0:01:51.4]} 19. O-O-O {[%clk 0:02:05.9]}
19... Bg7 {[%clk 0:01:50.8]} 20. Rh1 {[%clk 0:02:04.9]} 20... N6d7 {[%clk
0:01:40.8]} 21. Ndf3 {[%clk 0:02:01.4]} 21... Nxe5 {[%clk 0:01:39.8]} 22. Bxe5
{[%clk 0:02:01.4]} 22... Bf6 {[%clk 0:01:38.9]} 23. g4 {[%clk 0:01:55.7]} 23...
Kf7 {[%clk 0:01:33]} 24. g5 {[%clk 0:01:55]} 24... Bxe5 {[%clk 0:01:26.8]} 25.
Nxe5+ {[%clk 0:01:55.9]} 25... Ke6 {[%clk 0:01:26]} 26. g6 {[%clk 0:01:53.9]}
26... Nd7 {[%clk 0:01:24.5]} 27. Nxd7 {[%clk 0:01:53.2]} 27... Kxd7 {[%clk
0:01:25.1]} 28. Rg1 {[%clk 0:01:49.3]} 28... Rg8 {[%clk 0:01:23.6]} 29. g7
{[%clk 0:01:49.5]} 29... Ke6 {[%clk 0:01:23.8]} 30. Kd2 {[%clk 0:01:49.3]} 30...
Kf5 {[%clk 0:01:19.6]} 31. Kd3 {[%clk 0:01:49]} 31... e5 {[%clk 0:01:17.1]} 32.
dxe5 {[%clk 0:01:49.2]} 32... Kxe5 {[%clk 0:01:16.7]} 33. f4+ {[%clk 0:01:49.5]}
33... Kf5 {[%clk 0:01:15.8]} 34. Rg5+ {[%clk 0:01:49.4]} 34... Kf6 {[%clk
0:01:15.5]} 35. Kd4 {[%clk 0:01:49.6]} 35... b6 {[%clk 0:01:14.4]} 36. b4 {[%clk
0:01:48.8]} 36... a5 {[%clk 0:01:10.1]} 37. bxa5 {[%clk 0:01:48.4]} 37... bxa5
{[%clk 0:01:10.8]} 38. Kc5 {[%clk 0:01:47.5]} 1-0

[Event "*** Titled Tuesday Blitz"]
[Site "Chess.com"]
[Date "2020.04.14"]
[Round "3"]
[White "NicoChasin"]
[Black "Quiet_Desperation"]
[Result "0-1"]
[WhiteElo "2487"]
[BlackElo "1931"]
[TimeControl "180+1"]
[EndTime "10:25:53 PDT"]
[Termination "Quiet_Desperation won by checkmate"]

1. e4 {[%clk 0:03:00.9]} 1... e6 {[%clk 0:02:58.8]} 2. d4 {[%clk 0:02:58.5]}
2... d5 {[%clk 0:02:58.6]} 3. Nc3 {[%clk 0:02:57.1]} 3... Nf6 {[%clk 0:02:58.9]}
4. Bg5 {[%clk 0:02:56]} 4... Be7 {[%clk 0:02:58.8]} 5. e5 {[%clk 0:02:56]} 5...
Nfd7 {[%clk 0:02:59]} 6. h4 {[%clk 0:02:56.4]} 6... f6 {[%clk 0:02:57.8]} 7.
exf6 {[%clk 0:02:52.6]} 7... Nxf6 {[%clk 0:02:57.5]} 8. Nf3 {[%clk 0:02:53]}
8... c5 {[%clk 0:02:56.7]} 9. Bb5+ {[%clk 0:02:47.8]} 9... Nc6 {[%clk
0:02:56.7]} 10. Qe2 {[%clk 0:02:47.3]} 10... O-O {[%clk 0:02:56.4]} 11. O-O-O
{[%clk 0:02:46.9]} 11... c4 {[%clk 0:02:55]} 12. Rhe1 {[%clk 0:02:41.1]} 12...
a6 {[%clk 0:02:53.8]} 13. Bxc6 {[%clk 0:02:40.9]} 13... bxc6 {[%clk 0:02:54.3]}
14. Ne5 {[%clk 0:02:41.3]} 14... Qb6 {[%clk 0:02:44.3]} 15. f4 {[%clk
0:02:33.8]} 15... Bb4 {[%clk 0:02:40]} 16. f5 {[%clk 0:02:25.9]} 16... Bxc3
{[%clk 0:02:28.6]} 17. bxc3 {[%clk 0:02:24.4]} 17... Ne4 {[%clk 0:02:26.2]} 18.
Qf3 {[%clk 0:01:56.6]} 18... Rxf5 {[%clk 0:02:17.6]} 19. Qh3 {[%clk 0:01:54.9]}
19... Rb8 {[%clk 0:02:09.6]} 20. Rxe4 {[%clk 0:01:53.5]} 20... Rf2 {[%clk
0:02:02.7]} 21. Re2 {[%clk 0:00:58.9]} 21... Rxe2 {[%clk 0:02:00.7]} 22. Nxc4
{[%clk 0:00:05.8]} 22... Qb1# {[%clk 0:01:58.5]} 0-1